bitfinex/quotes_SOLUSD_20260220
["timestamp","ask_amount","ask_price","bid_price","bid_amount"]
[1771556219493,1.23765522,83.078,83.061,1.28109964]
[1771556220013,3.76210485,83.1,83.061,1.28109964]
[1771556220014,1.23765522,83.084,83.061,1.28109964]
[1771556223515,1.23765522,83.084,83.063,1.2225423]
[1771556228916,1.20382985,83.09,83.065,1.19689741]
[1771556229115,1.20382985,83.1,83.067,1.19689741]
[1771556230418,1.20382985,83.099,83.065,0.28432314]
[1771556230721,1.20382985,83.089,83.064,12.03890975]
[1771556232331,1.20382985,83.089,83.063,1.19689741]
[1771556232502,1.20382985,83.087,83.055,0.28432314]
[1771556232702,1.20382985,83.079,83.056,0.28432314]
[1771556233015,1.20382985,83.079,83.056,1.19689741]
[1771556236930,1.20382985,83.079,83.058,1.19689741]
[1771556238026,1.20382985,83.079,83.06,1.19689741]
[1771556240426,1.20382985,83.079,83.061,13.23624198]
[1771556242024,1.20382985,83.079,83.062,1.19689741]
[1771556242524,1.20382985,83.079,83.063,12.03905469]
[1771556242917,1.20382985,83.079,83.063,13.2359521]
[1771556246539,1.20382985,83.079,83.064,1.19689741]
[1771556247031,3.76210485,83.1,83.066,1.19689741]
[1771556247222,1.20382985,83.099,83.066,1.19689741]
[1771556247722,1.20382985,83.098,83.066,1.19689741]
[1771556248613,1.20382985,83.096,83.067,13.23537237]
[1771556248936,1.20382985,83.096,83.068,1.19689741]
[1771556252925,1.20382985,83.094,83.064,1.19689741]
[1771556253824,1.20382985,83.089,83.064,1.19689741]
[1771556255938,1.20382985,83.089,83.066,1.19689741]
[1771556264042,1.20382985,83.089,83.068,1.24532619]
[1771556267538,1.23626696,83.087,83.068,1.24532619]
[1771556267739,1.23626696,83.087,83.057,1.24532619]
[1771556268940,1.23626696,83.079,83.057,1.24532619]
[1771556269646,1.23626696,83.079,83.055,12.04013657]
[1771556271949,1.23626696,83.079,83.055,1.24532619]
[1771556273649,1.23626696,83.079,83.057,1.24532619]
[1771556282461,1.23626696,83.079,83.059,1.21037186]
[1771556282637,1.14660998,83.089,83.059,1.21037186]
[1771556282840,12.03488919,83.092,83.059,1.21037186]
[1771556283041,13.18149917,83.092,83.059,1.21037186]
[1771556283358,1.14660998,83.096,83.06,12.03948952]
[1771556283538,1.14660998,83.096,83.061,1.21037186]
[1771556286355,1.14660998,83.095,83.063,1.21037186]
[1771556287065,1.14660998,83.095,83.067,1.23114312]
[1771556287247,1.16063437,83.099,83.067,1.23114312]
[1771556288265,1.16063437,83.099,83.069,1.23114312]
[1771556292553,1.16063437,83.099,83.071,1.23114312]
[1771556294350,1.16063437,83.104,83.077,1.23114312]
[1771556296283,1.16063437,83.104,83.079,1.23114312]
[1771556296566,0.2,83.12,83.086,0.28432314]
[1771556296567,1.16063437,83.119,83.086,0.28432314]
[1771556296757,1.16063437,83.119,83.087,1.23114312]
[1771556297878,1.16063437,83.119,83.089,1.23114312]
[1771556299998,1.16063437,83.117,83.091,1.23114312]
[1771556301386,1.36063437,83.12,83.093,1.23114312]
[1771556303988,1.16063437,83.119,83.095,1.23114312]
[1771556309597,1.16063437,83.119,83.097,1.23114312]
[1771556309776,0.2,83.12,83.097,1.23114312]
[1771556309976,1.16063437,83.119,83.097,1.23114312]
[1771556313289,1.16063437,83.119,83.098,12.03398397]
[1771556313482,1.16063437,83.119,83.065,1.23114312]
[1771556313690,1.16063437,83.099,83.065,1.23114312]
[1771556314089,1.16063437,83.099,83.067,1.23114312]
[1771556314599,1.16063437,83.098,83.069,1.23114312]
[1771556317998,1.16063437,83.098,83.071,1.16774924]
[1771556318203,1.1802973,83.096,83.071,1.16774924]
[1771556319897,1.1802973,83.096,83.072,12.03775038]
[1771556320603,1.1802973,83.094,83.066,1.16774924]
[1771556320795,1.1802973,83.089,83.065,12.03870528]
[1771556320992,13.21471573,83.095,83.066,1.16774924]
[1771556321197,4.94096661,83.1,83.066,1.16774924]
[1771556321396,1.1802973,83.099,83.066,1.16774924]
[1771556323922,1.1802973,83.089,83.061,1.16774924]
[1771556325809,1.1802973,83.089,83.059,12.03963447]
[1771556325810,1.1802973,83.089,83.062,12.03919963]
[1771556326105,1.1802973,83.087,83.057,1.16774924]
[1771556326305,1.1802973,83.069,83.01,1.16774924]
[1771556326909,1.1802973,83.069,83.014,1.16774924]
[1771556327201,1.1802973,83.069,83.024,1.16774924]
[1771556327412,1.1802973,83.069,83.029,1.30991081]
[1771556327608,1.1802973,83.069,83.032,0.28432314]
[1771556327804,1.1802973,83.069,83.04,0.28432314]
[1771556328007,1.1802973,83.069,83.047,1.16774924]
[1771556331133,1.1802973,83.069,83.048,13.2089784]
[1771556331316,1.1802973,83.069,83.049,1.16774924]
[1771556332118,1.1802973,83.069,83.048,12.04122916]
[1771556333112,1.1802973,83.069,83.048,13.2089784]
[1771556335818,1.1802973,83.069,83.037,1.16774924]
[1771556340217,3.76066931,83.08,83.047,1.16774924]
[1771556340708,3.76066931,83.08,83.039,1.16774924]
[1771556341923,3.76066931,83.06,83.031,1.16774924]
[1771556342135,1.1802973,83.059,83.033,1.16774924]
[1771556344017,1.1802973,83.059,83.035,1.16968501]
[1771556345230,1.1802973,83.059,83.036,13.21265432]
[1771556345409,1.1802973,83.059,83.037,1.16968501]
[1771556349433,1.1802973,83.059,83.039,1.20957178]
[1771556357135,1.1802973,83.059,83.041,1.20957178]
[1771556359238,1.1297266,83.058,83.035,1.20957178]
[1771556362527,1.1297266,83.058,83.037,1.20957178]
[1771556362947,1.1297266,83.056,83.018,1.20957178]
[1771556363951,3.76066931,83.06,83.024,1.20957178]
[1771556363952,4.89039591,83.06,83.024,1.20957178]
[1771556364949,1.1297266,83.06,83.026,1.20957178]
[1771556372641,1.1297266,83.06,83.028,1.20957178]
[1771556373154,1.1297266,83.058,83.028,1.20957178]
[1771556375258,1.1297266,83.058,83.03,1.20957178]
[1771556377361,1.1297266,83.058,83.031,12.04369452]
[1771556377562,1.1297266,83.058,83.032,1.35186658]
[1771556378242,1.37008792,83.049,83.01,0.14216157]
[1771556378453,1.37008792,83.039,83.012,1.35186658]
[1771556380160,1.37008792,83.039,83.014,1.35186658]
[1771556385263,1.37008792,83.039,83.015,12.04601578]
[1771556385446,1.37008792,83.039,83.016,1.35186658]
[1771556387865,1.37008792,83.039,83.018,1.35186658]
[1771556390351,1.37008792,83.037,83.018,1.35186658]
[1771556393762,1.37008792,83.037,83.02,1.35186658]
[1771556395073,1.37008792,83.029,83.002,1.35186658]
[1771556395369,1.37008792,83.029,83.003,12.0477573]
[1771556395569,1.37008792,83.027,83.002,12.04788733]
[1771556395753,1.37008792,83.019,82.993,1.35186658]
[1771556395952,1.37008792,83.019,82.994,12.04895585]
[1771556396154,1.37008792,83.019,82.997,1.35186658]
[1771556396774,1.37008792,83.019,83.001,12.04804761]
[1771556399173,1.37008792,83.019,83.0,1.45186658]
[1771556399869,1.37008792,83.019,83.0,0.1]
[1771556400069,1.37008792,83.017,83.0,0.1]
[1771556400271,1.37008792,83.009,82.971,42.18341347]
[1771556400970,1.37008792,83.021,82.972,0.42648471]
[1771556401976,1.37008792,83.019,82.974,0.42648471]
[1771556402357,1.37008792,83.019,82.975,1.35186658]
[1771556403867,1.43402057,83.039,82.985,1.41679044]
[1771556404073,1.43402057,83.038,82.995,1.41679044]
[1771556404386,1.43402057,83.038,83.005,1.41679044]
[1771556405459,1.43402057,83.049,83.007,1.41679044]
[1771556406265,1.43402057,83.048,83.007,1.41679044]
[1771556408982,1.45045419,83.054,83.014,1.3611536]
[1771556409283,1.45045419,83.059,83.026,1.3611536]
[1771556413285,1.45045419,83.059,83.028,1.3611536]
[1771556415681,1.45045419,83.059,83.03,1.3611536]
[1771556419290,1.45045419,83.059,83.032,1.3611536]
[1771556420784,1.45045419,83.058,83.032,1.3611536]
[1771556425193,1.45045419,83.058,83.033,12.04340442]
[1771556425899,1.45045419,83.058,83.033,13.40455802]
[1771556426696,1.45045419,83.058,83.034,1.3611536]
[1771556428296,1.45045419,83.058,83.035,13.40426794]
[1771556428502,1.45045419,83.058,83.036,1.3611536]
[1771556428801,1.45045419,83.084,83.036,1.3611536]
[1771556429002,1.45045419,83.079,83.036,1.3611536]
[1771556431297,1.45045419,83.079,83.046,1.3611536]
[1771556432898,1.45045419,83.079,83.048,1.3611536]
[1771556433093,1.45045419,83.079,83.053,0.14216157]
[1771556433315,1.45045419,83.079,83.055,0.14216157]
[1771556433518,1.45045419,83.079,83.056,1.3611536]
[1771556435198,1.45045419,83.079,83.058,1.3611536]
[1771556436240,1.45045419,83.079,83.059,12.03963447]
[1771556436414,1.45045419,83.079,83.059,13.40078807]
[1771556436600,1.45045419,83.079,83.059,12.03963447]
[1771556436807,12.03494076,83.092,83.059,12.03963447]
[1771556436808,1.56197709,83.092,83.06,1.3611536]
[1771556437192,1.56197709,83.092,83.064,1.46117206]
[1771556437399,1.56197709,83.092,83.066,1.46117206]
[1771556438005,1.56197709,83.099,83.066,1.46117206]
[1771556439914,1.56197709,83.099,83.067,12.03847496]
[1771556440100,1.56197709,83.099,83.068,1.46117206]
[1771556441797,1.56197709,83.103,83.068,1.46117206]
[1771556442396,1.56197709,83.103,83.07,1.46117206]
[1771556443414,1.56197709,83.103,83.076,1.46117206]
[1771556444320,1.56197709,83.103,83.077,12.03702589]
[1771556444623,1.56197709,83.109,83.086,1.46117206]
[1771556445922,1.56197709,83.119,83.088,1.46117206]
[1771556448018,1.56197709,83.119,83.089,13.49645952]
[1771556448421,1.56197709,83.119,83.09,1.46117206]
[1771556450422,1.56197709,83.119,83.092,1.46117206]
[1771556452206,1.56197709,83.119,83.093,12.03470809]
[1771556452413,1.56197709,83.119,83.093,13.49588015]
[1771556452716,13.59300969,83.119,83.094,1.46117206]
[1771556453027,1.56197709,83.118,83.094,1.46117206]
[1771556454624,1.56197709,83.116,83.09,1.46117206]
[1771556454821,1.56197709,83.109,83.079,12.03673611]
[1771556455726,1.56197709,83.109,83.079,13.49790817]
[1771556461215,1.56197709,83.109,83.08,1.46117206]
[1771556462939,1.5746568,83.108,83.08,1.46117206]
[1771556463435,1.5746568,83.106,83.081,13.58855506]
[1771556463930,1.5746568,83.099,83.077,12.03699115]
[1771556464324,1.5746568,83.089,83.07,30.09484231]
[1771556468430,1.5746568,83.089,83.067,12.03847496]
[1771556468822,1.54208385,83.087,83.054,12.04035928]
[1771556469018,1.54208385,83.079,83.054,12.04035928]
[1771556469544,1.54208385,83.079,83.055,1.47972838]
[1771556472742,1.54208385,83.079,83.056,12.04006935]
[1771556473129,1.54208385,83.079,83.057,1.47972838]
[1771556476533,1.54208385,83.079,83.059,1.47972838]
[1771556478545,1.54208385,83.079,83.061,1.47972838]
[1771556479638,1.54208385,83.079,83.063,1.47972838]
[1771556481291,1.54208385,83.078,83.055,1.47972838]
[1771556481753,1.54208385,83.078,83.057,1.47972838]
[1771556486569,1.54208385,83.078,83.059,1.47972838]
[1771556494473,1.02442631,83.078,83.059,1.47972838]
[1771556497154,1.49889822,83.076,83.059,1.47972838]
[1771556497356,1.49889822,83.08,83.061,1.64981706]
[1771556497559,1.49889822,83.089,83.061,1.64981706]
[1771556498570,1.49889822,83.089,83.06,12.03948952]
[1771556498571,3.7607087,83.11,83.065,1.64981706]
[1771556498961,12.03239119,83.109,83.067,1.64981706]
[1771556499161,3.7607087,83.11,83.075,1.64981706]
[1771556500564,0.28533185,83.109,83.075,1.64981706]
[1771556502081,0.28533185,83.109,83.077,1.64981706]
[1771556502489,0.29025206,83.113,83.077,1.64981706]
[1771556503176,0.2926595,83.117,83.081,1.64981706]
[1771556503357,0.2926595,83.117,83.085,1.64981706]
[1771556503564,3.96000249,83.12,83.085,1.64981706]
[1771556504170,0.2,83.12,83.087,1.64981706]
[1771556505984,0.29970368,83.119,83.089,1.64981706]
[1771556506484,0.29970368,83.109,83.089,1.64981706]
[1771556508162,0.30426037,83.119,83.091,1.64981706]
[1771556508359,3.76000249,83.11,83.091,1.64981706]
[1771556508586,0.30426037,83.109,83.091,1.64981706]
[1771556509293,0.30426037,83.109,83.092,12.03485293]
[1771556509584,0.3065089,83.118,83.093,1.64981706]
[1771556509765,0.3065089,83.119,83.093,1.64981706]
[1771556513581,0.2,83.12,83.095,1.64981706]
[1771556517293,0.2,83.12,83.097,1.64981706]
[1771556518493,0.2,83.12,83.099,1.64981706]
[1771556518700,0.52556451,83.12,83.099,1.64981706]
[1771556518877,4.285567,83.12,83.099,1.64981706]
[1771556523606,0.2,83.12,83.101,1.5866509]
[1771556524711,0.33906661,83.119,83.096,12.03425708]
[1771556525908,12.03108833,83.118,83.092,1.5866509]
[1771556526092,12.03108833,83.118,83.088,12.03532827]
[1771556526093,0.34275013,83.109,83.088,12.03532827]
[1771556526412,0.34275013,83.099,83.08,1.5866509]
[1771556526590,0.34275013,83.099,83.073,12.03751258]
[1771556526790,0.34456022,83.096,83.074,1.5866509]
[1771556528712,3.76000249,83.1,83.054,1.66994608]
[1771556528713,0.34814028,83.089,83.054,1.66994608]
[1771556529315,12.03441843,83.095,83.054,1.66994608]
[1771556529316,0.34989691,83.079,83.054,1.66994608]
[1771556530512,0.34989691,83.079,83.055,13.71016039]
[1771556530913,0.34989691,83.079,83.056,1.66994608]
[1771556533624,3.76000249,83.08,83.058,1.66994608]
[1771556533821,0.35265228,83.085,83.058,1.66994608]
[1771556534510,0.35024713,83.097,83.058,1.66994608]
[1771556535102,3.76000249,83.09,83.058,1.66994608]
[1771556536924,4.10317438,83.09,83.059,12.03963447]
[1771556537123,4.10317438,83.09,83.06,1.66994608]
[1771556539226,1.61471057,83.088,83.04,0.28432314]
[1771556539418,12.03528746,83.089,82.985,5.36086188]
[1771556539419,1.61471057,83.059,82.985,5.36086188]
[1771556539618,1.61471057,83.059,82.99,3.69383402]
[1771556539819,1.61471057,83.059,82.997,5.36086188]
[1771556540127,1.61471057,83.059,83.0,3.79383402]
[1771556540330,1.61471057,83.059,83.001,0.42648471]
[1771556540830,1.61471057,83.059,83.001,0.14216157]
[1771556541224,1.61471057,83.059,83.009,1.81210765]
[1771556541627,1.61471057,83.059,83.024,0.28432314]
[1771556541942,1.61471057,83.059,83.025,1.66994608]
[1771556543835,1.61471057,83.059,83.027,1.66994608]
[1771556546151,1.61471057,83.059,83.029,1.66994608]
[1771556547738,1.61471057,83.059,83.031,1.66994608]
[1771556549820,1.61471057,83.059,83.033,1.66994608]
[1771556552736,3.76000249,83.06,83.035,1.66994608]
[1771556552924,1.61471057,83.064,83.035,1.66994608]
[1771556553124,3.76000249,83.07,83.035,1.66994608]
[1771556553125,5.37471306,83.07,83.035,1.66994608]
[1771556553329,1.61471057,83.069,83.035,1.66994608]
[1771556555638,1.61471057,83.069,83.037,1.66994608]
[1771556557841,1.61471057,83.069,83.039,1.5027159]
[1771556561650,1.61471057,83.069,83.041,1.5027159]
[1771556561821,3.76000249,83.08,83.051,1.5027159]
[1771556562022,3.76000249,83.08,83.055,1.5027159]
[1771556562222,3.76000249,83.08,83.04,42.14836223]
[1771556562223,1.55842874,83.079,83.044,1.5027159]
[1771556562419,1.55842874,83.069,83.044,1.5027159]
[1771556563535,1.55842874,83.069,83.046,1.5027159]
[1771556566444,1.55842874,83.078,83.048,1.5027159]
[1771556567946,1.55842874,83.078,83.05,1.5027159]
[1771556570650,1.55842874,83.097,83.052,1.78703904]
[1771556570836,1.55842874,83.079,83.052,1.78703904]
[1771556571163,1.55842874,83.079,83.052,1.5027159]
[1771556573959,1.55842874,83.079,83.03,3.69383402]
[1771556573960,1.55842874,83.079,83.053,13.54322015]
[1771556574658,1.55842874,83.079,83.054,1.5027159]
[1771556576464,1.55842874,83.079,83.055,12.04021431]
[1771556576659,1.55842874,83.069,83.012,1.5027159]
[1771556576957,1.55842874,83.069,83.015,1.5027159]
[1771556577255,1.55842874,83.069,83.023,1.5027159]
[1771556577461,1.55842874,83.069,83.025,1.5027159]
[1771556577864,1.55842874,83.059,83.025,1.5027159]
[1771556580064,1.55842874,83.059,83.027,1.5027159]
[1771556580263,1.55842874,83.063,83.027,1.5027159]
[1771556580658,1.55842874,83.059,83.027,1.5027159]
[1771556582567,1.55842874,83.059,83.029,1.5027159]
[1771556584363,1.44001584,83.068,83.031,1.79823729]
[1771556584749,1.44001584,83.079,83.034,0.28432314]
[1771556584950,1.44001584,83.079,83.032,0.14216157]
[1771556584951,3.76313215,83.1,83.049,1.51391415]
[1771556585161,3.76313215,83.1,83.065,1.51391415]
[1771556585162,1.44001584,83.099,83.065,1.51391415]
[1771556586172,1.44001584,83.099,83.067,1.51391415]
[1771556587364,1.46879089,83.104,83.075,1.36842639]
[1771556588155,1.46879089,83.104,83.077,1.36842639]
[1771556589454,1.46879089,83.109,83.077,1.36842639]
[1771556589653,3.96313215,83.13,83.076,42.13009773]
[1771556589654,1.46879089,83.123,83.085,1.36842639]
[1771556589853,1.46879089,83.128,83.095,1.36842639]
[1771556590054,1.46879089,83.122,83.095,1.36842639]
[1771556590450,5.43192304,83.12,83.097,1.36842639]
[1771556590669,1.46879089,83.119,83.097,1.36842639]
[1771556592678,1.46879089,83.119,83.092,1.36842639]
[1771556594290,1.46879089,83.119,83.093,13.40313448]
[1771556594459,1.46879089,83.119,83.094,1.36842639]
[1771556596561,1.46879089,83.119,83.096,1.36842639]
[1771556598380,1.46879089,83.119,83.097,12.03412878]
[1771556598853,1.46879089,83.118,83.092,1.36842639]
[1771556599057,1.46879089,83.118,83.085,1.36842639]
[1771556600978,1.46879089,83.118,83.087,1.36842639]
[1771556601677,3.96313215,83.12,83.087,1.36842639]
[1771556601979,0.2,83.12,83.087,1.36842639]
[1771556602161,1.66879089,83.12,83.087,1.36842639]
[1771556602362,1.46879089,83.119,83.087,1.36842639]
[1771556607483,1.46879089,83.119,83.089,1.36842639]
[1771556607983,1.46879089,83.117,83.089,1.36842639]
[1771556611778,1.46879089,83.117,83.091,1.36842639]
[1771556615166,1.46879089,83.117,83.092,12.03485293]
[1771556615483,1.66879089,83.12,83.093,1.36842639]
[1771556616082,1.66879089,83.12,83.094,0.28432314]
[1771556616405,0.2,83.12,83.095,1.36842639]
[1771556617568,0.2,83.13,83.105,1.31091614]
[1771556618888,0.2,83.13,83.107,1.31091614]
[1771556621792,0.2,83.13,83.109,1.31091614]
[1771556621987,3.96313215,83.14,83.115,1.31091614]
[1771556621988,0.2,83.14,83.115,1.31091614]
[1771556622387,1.56544724,83.14,83.115,1.31091614]
[1771556623092,0.2,83.14,83.117,1.31091614]
[1771556623670,1.56544724,83.14,83.117,1.31091614]
[1771556624087,1.36544724,83.139,83.118,12.03108833]
[1771556625492,1.36544724,83.139,83.118,1.31091614]
[1771556626374,1.36544724,83.139,83.111,1.59523928]
[1771556628094,1.36544724,83.139,83.113,1.59523928]
[1771556628895,5.32209782,83.14,83.113,1.59523928]
[1771556629082,1.36544724,83.139,83.113,1.59523928]
[1771556632292,1.36544724,83.139,83.115,1.31091614]
[1771556633400,1.36544724,83.139,83.116,12.03137783]
[1771556633578,1.36544724,83.139,83.117,1.31091614]
[1771556634900,1.36544724,83.139,83.105,1.31091614]
[1771556635108,1.36544724,83.129,83.106,1.31091614]
[1771556635798,1.36544724,83.129,83.107,13.3435969]
[1771556636097,1.36544724,83.129,83.108,1.31091614]
[1771556637902,1.36544724,83.129,83.109,12.03239119]
[1771556638807,1.36544724,83.129,83.102,1.31091614]
[1771556638978,1.36544724,83.119,83.091,1.31091614]
[1771556640101,1.36544724,83.119,83.092,12.03485293]
[1771556640397,1.36544724,83.119,83.093,1.31091614]
[1771556641478,1.36544724,83.117,83.078,1.31091614]
[1771556641707,12.03108833,83.118,83.073,1.31091614]
[1771556641708,1.36544724,83.099,83.073,1.31091614]
[1771556642785,1.32026363,83.109,83.073,1.31091614]
[1771556643081,1.32026363,83.115,83.073,1.31091614]
[1771556643711,12.03108833,83.118,83.073,1.31091614]
[1771556643886,12.03108833,83.281,83.05,48.16345236]
[1771556643887,1.32026363,83.137,83.081,0.14216157]
[1771556644080,1.32026363,83.137,83.097,0.14216157]
[1771556644303,1.32026363,83.137,83.102,1.32969221]
[1771556645197,1.32026363,83.137,83.104,1.32969221]
[1771556647294,0.2,83.14,83.106,1.27016539]
[1771556649107,0.2,83.14,83.108,1.27016539]
[1771556650509,0.2,83.14,83.11,1.27016539]
[1771556651291,0.2,83.14,83.112,1.27016539]
[1771556652606,0.2,83.14,83.114,1.27016539]
[1771556653942,0.2,83.14,83.116,1.27016539]
[1771556654715,1.55218216,83.14,83.116,1.27016539]
[1771556656516,1.55218216,83.14,83.118,1.27016539]
[1771556657314,1.55218216,83.15,83.118,1.27016539]
[1771556657894,1.35218216,83.149,83.118,1.27016539]
[1771556659118,1.35218216,83.149,83.117,42.10931578]
[1771556659119,1.35218216,83.149,83.12,1.27016539]
[1771556660408,1.35218216,83.149,83.122,1.27016539]
[1771556662521,1.35218216,83.149,83.124,1.27016539]
[1771556664522,0.2,83.16,83.127,1.27016539]
[1771556665817,3.95665058,83.16,83.129,1.27016539]
[1771556666623,0.399996,83.159,83.129,1.27016539]
[1771556669221,0.399996,83.159,83.131,1.27016539]
[1771556674020,0.399996,83.159,83.133,1.27016539]
[1771556676105,0.2,83.16,83.135,1.27016539]
[1771556678230,0.2,83.16,83.137,1.25928509]
[1771556679833,0.3879074,83.159,83.137,1.25928509]
[1771556682121,0.3879074,83.159,83.138,12.02819408]
[1771556682323,0.3879074,83.159,83.139,1.25928509]
[1771556682635,0.3879074,83.159,83.138,12.02819408]
[1771556683136,0.3879074,83.159,83.138,13.28747917]
[1771556684316,0.3879074,83.159,83.133,1.25928509]
[1771556685939,0.3879074,83.159,83.135,1.25928509]
[1771556689443,0.3879074,83.159,83.136,12.02848344]
[1771556689644,0.3879074,83.159,83.137,1.25928509]
[1771556690735,0.38473308,83.149,83.119,1.25928509]
[1771556691540,0.38473308,83.149,83.12,12.03079884]
[1771556691837,0.38473308,83.149,83.121,1.25928509]
[1771556694946,0.38473308,83.149,83.122,12.03050937]
[1771556695245,0.38327826,83.139,83.118,12.03106336]
[1771556695729,0.38327826,83.139,83.119,1.25928509]
[1771556698247,0.38327826,83.139,83.121,1.25928509]
[1771556700049,0.38190509,83.144,83.122,12.03050937]
[1771556700249,0.38190509,83.139,83.122,12.03050937]
[1771556700846,0.38190509,83.129,83.075,1.25928509]
[1771556701150,0.38163984,83.109,83.083,1.25928509]
[1771556701948,0.38163984,83.109,83.084,42.1260411]
[1771556702139,0.38163984,83.109,83.085,1.25928509]
[1771556704041,0.38163984,83.109,83.087,1.23310691]
[1771556705167,0.38163984,83.109,83.088,12.03543231]
[1771556705345,0.38163984,83.109,83.089,1.23310691]
[1771556707249,0.38163984,83.109,83.079,1.26770273]
[1771556707560,4.13521617,83.09,83.073,1.26770273]
[1771556707859,4.13521617,83.09,83.071,12.03789529]
[1771556707860,0.37962468,83.089,83.071,12.03789529]
[1771556708038,0.37962468,83.089,83.069,13.30588785]
[1771556708441,0.37962468,83.089,83.07,1.26770273]
[1771556709846,0.37962468,83.089,83.071,12.03789529]
[1771556710663,0.37962468,83.089,83.054,1.26770273]
[1771556710866,12.03543231,83.088,83.085,127.64163133]
[1771556711045,12.03543231,83.088,83.054,1.26770273]
[1771556711241,3.75559149,83.08,83.054,1.26770273]
[1771556713245,3.75559149,83.08,83.056,1.34702936]
[1771556713444,108.26878207,83.127,83.0,0.1]
[1771556713445,7.51118298,83.07,83.0,0.1]
[1771556713645,7.51118298,83.07,82.871,8.05948172]
[1771556713646,3.75559149,83.01,82.94,0.1]
[1771556713983,3.75559149,82.98,82.94,0.1]
[1771556714165,7.51118298,82.98,82.96,1e-08]
[1771556714346,3.75559149,82.97,82.94,0.1]
[1771556714545,3.75559149,82.98,82.94,0.1]
[1771556714546,3.75559149,82.96,82.94,0.1]
[1771556715061,3.75559149,82.98,82.931,12.05821707]
[1771556715266,3.75559149,82.97,82.898,48.25151485]
[1771556715461,3.75559149,82.97,82.931,1.34668665]
[1771556716260,3.75559149,82.97,82.934,1.34668665]
[1771556716854,3.75559149,82.97,82.898,73.21173073]
[1771556716855,3.75559149,82.97,82.942,1.26770273]
[1771556717064,3.75559149,82.97,82.952,1.26770273]
[1771556717949,3.75559149,82.97,82.954,1.26770273]
[1771556718353,12.0500652,82.988,82.954,1.26770273]
[1771556718551,1.06287965,82.97,82.953,12.0550191]
[1771556720671,3.75559149,82.96,82.937,0.42648471]
[1771556721558,3.75559149,82.97,82.937,0.42648471]
[1771556722975,3.75559149,82.97,82.939,0.42648471]
[1771556724457,3.75559149,82.97,82.94,42.19918012]
[1771556724658,3.75559149,82.97,82.941,0.42648471]
[1771556726871,3.75559149,82.97,82.943,0.14216157]
[1771556729569,1.34619055,82.969,82.943,0.14216157]
[1771556730178,1.34619055,82.959,82.942,12.05661787]
[1771556730476,1.34619055,82.949,82.934,12.05764226]
[1771556731186,1.34619055,82.949,82.93,0.1]
[1771556737675,0.28432314,83.002,82.941,0.93007559]
[1771556737984,0.28432314,83.002,82.961,0.90827406]
[1771556737985,3.77416347,82.99,82.961,0.90827406]
[1771556738370,3.77416347,83.0,82.966,0.28432314]
[1771556738574,3.77416347,83.0,82.971,0.90827406]
[1771556738882,3.77416347,83.0,82.973,0.90827406]
[1771556739076,3.77416347,82.99,82.973,0.90827406]
[1771556739666,1.14308042,82.989,82.969,0.28432314]
[1771556740071,3.77416347,82.98,82.969,0.28432314]
[1771556741593,3.77416347,82.98,82.971,0.28432314]
[1771556742400,3.77416347,82.98,82.972,12.05225859]
[1771556745387,3.77416347,82.98,82.973,1.13043814]
[1771556746575,3.77416347,82.98,82.974,12.05196808]
[1771556746776,3.77416347,82.98,82.974,13.18240622]
[1771556747890,3.77146315,82.98,82.974,13.18240622]
[1771556749088,3.77146315,82.98,82.974,12.05196808]
[1771556753899,3.77146315,82.98,82.97,12.33687225]
[1771556754987,3.77146315,82.98,82.971,1.13043814]
[1771556755504,1.14308042,82.987,82.972,12.05225859]
[1771556756495,3.77146315,82.98,82.972,12.05225859]
[1771556756699,1.14308042,82.979,82.972,12.05225859]
[1771556757079,3.77146315,82.98,82.972,12.05225859]
[1771556757276,1.14308042,82.979,82.96,1.13043814]
[1771556757499,3.77146315,82.97,82.961,0.14216157]
[1771556757900,3.77146315,82.97,82.961,1.41476128]
[1771556758700,3.77146315,82.97,82.961,13.46861791]
[1771556759202,3.77146315,82.97,82.963,12.05356604]
[1771556759582,1.14308042,82.969,82.934,1.13043814]
[1771556759784,3.77146315,82.96,82.944,1.13043814]
[1771556759983,3.77146315,82.95,82.931,1.13043814]
[1771556760192,3.77146315,82.94,82.931,1.13043814]
[1771556760591,4.91454357,82.94,82.921,12.05967125]
[1771556760784,1.14308042,82.939,82.921,12.05967125]
[1771556761196,1.14308042,82.939,82.92,0.1]
[1771556761904,1.14308042,82.949,82.92,0.1]
[1771556762481,1.14308042,82.949,82.92,0.24971573]
[1771556763298,0.68645527,82.959,82.924,0.12608095]
[1771556765100,0.68645527,82.949,82.925,0.50610741]
[1771556765499,0.68645527,82.949,82.925,0.42648471]
[1771556765705,3.77146315,82.95,82.928,0.72278278]
[1771556765900,3.77146315,82.95,82.929,0.42648471]
[1771556766200,33.89951781,82.98,82.92,3.87146315]
[1771556766201,30.1324475,82.968,82.921,12.05967125]
[1771556766398,3.77146315,82.94,82.921,12.05967125]
[1771556766702,3.77146315,82.95,82.921,12.05967125]
[1771556767694,0.66029227,82.949,82.921,12.05967125]
[1771556768207,4.43175542,82.96,82.941,0.65477766]
[1771556768412,0.66029227,82.959,82.94,12.05679552]
[1771556769999,3.77146315,82.97,82.941,0.65477766]
[1771556770302,12.05153235,82.977,82.942,12.05661787]
[1771556770507,3.77146315,82.97,82.943,0.65477766]